[Event "69th RUS-ch Women Higher League 2019"]
[Site "Yaroslavl"]
[Date "2019.06.27"]
[Round "1.15"]
[White "Shaydullina, Sandugach"]
[Black "Dordzhieva, Dinara"]
[Result "0-1"]
[ECO "E04"]
[WhiteElo "2128"]
[BlackElo "2306"]
[Annotator "NA"]
[PlyCount "140"]
[EventDate "2019.06.27"]
[EventType "swiss"]
[EventCountry "RUS"]
[SourceTitle "playchess.com"]
[Source "ChessBase"]
[SourceQuality "1"]
[TimeControl "40/5400+30:1800+30"]

1. d4 {[%emt 0:00:00]} d5 {[%emt 0:00:00]} 2. Nf3 {[%emt 0:00:00]} Nf6 {[%emt 0:00:00]} 3. c4 {[%emt 0:00:01]} e6 {[%emt 0:00:00]} 4. g3 {[%emt 0:00:21]} dxc4 {[%emt 0:00:07]} 5. Bg2 {[%emt 0:00:06]} c6 {[%emt 0:00:03]} 6. O-O {[%emt 0:00:08]} b5 {[%emt 0:00:05]} 7. Ne5 {[%emt 0:01:47]} Bb7 {[%emt 0:00:11]} 8. b3 {[%emt 0:04:04]} cxb3 {[%emt 0:00:17]} 9. Qxb3 {[%emt 0:00:35]} Qxd4 {[%emt 0:03:34]} 10. Bb2 {[%emt 0:00:13]} Qb6 {[%emt 0:00:37]} 11. a4 {[%emt 0:03:21]} Be7 {[%emt 0:08:45]} 12. a5 {[%emt 0:01:28]} Qa6 {[%emt 0:00:33]} 13. Rc1 {[%emt 0:02:44]} O-O {[%emt 0:16:51]} 14. Nd3 {[%emt 0:04:45]} Nbd7 {[%emt 0:02:43]} 15. Ba3 {[%emt 0:08:23]} c5 {[%emt 0:03:36]} 16. Bxb7 {[%emt 0:00:19]} Qxb7 {[%emt 0:00:03]} 17. Nxc5 {[%emt 0:00:26]} Nxc5 {[%emt 0:04:17]} 18. Bxc5 {[%emt 0:00:07]} Rac8 {[%emt 0:00:34]} 19. Be3 {[%emt 0:01:31]} a6 {[%emt 0:03:49]} 20. Nc3 {[%emt 0:00:18]} Ng4 {[%emt 0:01:55]} 21. Bd4 {[%emt 0:06:19]} Rc4 {[%emt 0:00:33]} 22. e3 {[%emt 0:03:16]} Rfc8 {[%emt 0:01:48]} 23. h3 {[%emt 0:01:19]} Nf6 {[%emt 0:00:12]} 24. Qd1 {[%emt 0:02:13]} h6 {[%emt 0:01:53]} 25. Ne2 {[%emt 0:05:40]} Ne4 {[%emt 0:01:54]} 26. Rxc4 {[%emt 0:00:32]} bxc4 {[%emt 0:02:18]} 27. h4 {[%emt 0:01:07]} Qd5 {[%emt 0:04:12]} 28. Nf4 {[%emt 0:01:22]} Qf5 {[%emt 0:01:43]} 29. g4 {[%emt 0:04:53]} Qb5 {[%emt 0:00:40]} 30. Qc2 {[%emt 0:04:49]} Nd6 {[%emt 0:02:42]} 31. Qc3 {[%emt 0:02:43]} Bxh4 {[%emt 0:04:21]} 32. f3 {[%emt 0:01:14]} Qc6 {[%emt 0:01:25]} 33. Kg2 {[%emt 0:17:40]} Nb5 {[%emt 0:00:32]} 34. Qc2 {[%emt 0:01:13]} Nxd4 {[%emt 0:01:39]} 35. exd4 {[%emt 0:00:05]} Bf6 {[%emt 0:03:50]} 36. Rd1 {[%emt 0:00:15]} Rd8 {[%emt 0:00:04]} 37. Ne2 {[%emt 0:03:25]} Qb5 {[%emt 0:01:15]} 38. Rb1 {[%emt 0:00:14]} Qd5 {[%emt 0:00:45]} 39. Rb4 {[%emt 0:01:11]} Rc8 {[%emt 0:00:23]} 40. Qc3 {[%emt 0:00:00]} Qxa5 {[%emt 0:00:00]} 41. Rb8 {[%emt 0:09:08]} Qc7 {[%emt 0:02:38]} 42. Rb1 {[%emt 0:00:10]} a5 {[%emt 0:00:49]} 43. Ng3 {[%emt 0:00:34]} Qd8 {[%emt 0:01:35]} 44. Rd1 {[%emt 0:01:51]} Qd5 {[%emt 0:00:43]} 45. Ne4 {[%emt 0:02:26]} Be7 {[%emt 0:01:22]} 46. Qc2 {[%emt 0:01:20]} Rb8 {[%emt 0:00:29]} 47. Nc3 {[%emt 0:02:50]} Qc6 {[%emt 0:01:25]} 48. d5 {[%emt 0:00:10]} exd5 {[%emt 0:00:03]} 49. Nxd5 {[%emt 0:00:12]} Bf8 {[%emt 0:00:03]} 50. Rd4 {[%emt 0:02:29]} a4 {[%emt 0:08:12]} 51. Qe4 {[%emt 0:03:34]} Qc5 {[%emt 0:03:53]} 52. Kh3 {[%emt 0:07:01]} a3 {[%emt 0:03:16]} 53. Nc3 {[%emt 0:05:46]} Rc8 {[%emt 0:04:17]} 54. Qf4 {[%emt 0:03:48]} Qc6 {[%emt 0:01:29]} 55. Kg2 {[%emt 0:02:37]} Qe6 {[%emt 0:00:35]} 56. Re4 {[%emt 0:03:05]} Qd6 {[%emt 0:00:14]} 57. Qf5 {[%emt 0:00:28]} Rb8 {[%emt 0:00:23]} 58. Re2 {[%emt 0:02:49]} Qd3 {[%emt 0:01:17]} 59. Qe5 {[%emt 0:01:37]} Bd6 {[%emt 0:00:49]} 60. Qa5 {[%emt 0:01:57]} Bb4 {[%emt 0:00:28]} 61. Qa7 {[%emt 0:00:37]} Rd8 {[%emt 0:01:22]} 62. Re3 {[%emt 0:00:28]} Qd2+ {[%emt 0:00:09]} 63. Ne2 {[%emt 0:00:53]} a2 {[%emt 0:00:11]} 64. Re4 {[%emt 0:02:52]} Bc3 {[%emt 0:00:05]} 65. Qa4 {[%emt 0:01:06]} a1=Q {[%emt 0:00:32]} 66. Qxc4 {[%emt 0:00:28]} Bf6 {[%emt 0:01:20]} 67. Qc6 {[%emt 0:00:55]} Qdd1 {[%emt 0:00:04]} 68. Kg3 {[%emt 0:01:16]} Qe1+ {[%emt 0:00:06]} 69. Kf4 {[%emt 0:00:09]} Bg5+ {[%emt 0:00:11]} 70. Kf5 {[%emt 0:00:12]} Rd5+ {[%emt 0:00:11]} 0-1

[Event "69th RUS-ch Women Higher League 2019"]
[Site "Yaroslavl"]
[Date "2019.06.27"]
[Round "1.16"]
[White "Goltseva, Ekaterina"]
[Black "Bulatova, Kamaliya"]
[Result "1-0"]
[ECO "D37"]
[WhiteElo "2304"]
[BlackElo "2102"]
[Annotator "NA"]
[PlyCount "107"]
[EventDate "2019.06.27"]
[EventType "swiss"]
[EventCountry "RUS"]
[SourceTitle "playchess.com"]
[Source "ChessBase"]
[SourceQuality "1"]
[TimeControl "40/5400+30:1800+30"]

1. d4 {[%emt 0:00:00]} Nf6 {[%emt 0:00:00]} 2. c4 {[%emt 0:00:00]} e6 {[%emt 0:00:00]} 3. Nf3 {[%emt 0:00:00]} d5 {[%emt 0:00:00]} 4. Nc3 {[%emt 0:00:25]} a6 {[%emt 0:02:38]} 5. cxd5 {[%emt 0:04:49]} exd5 {[%emt 0:00:08]} 6. Bg5 {[%emt 0:00:29]} Be6 {[%emt 0:05:38]} 7. e3 {[%emt 0:05:55]} Nbd7 {[%emt 0:02:36]} 8. Bd3 {[%emt 0:05:46]} Bd6 {[%emt 0:07:21]} 9. O-O {[%emt 0:04:56]} h6 {[%emt 0:01:30]} 10. Bh4 {[%emt 0:04:57]} c6 {[%emt 0:08:02]} 11. Re1 {[%emt 0:19:16]} Qc7 {[%emt 0:13:54]} 12. e4 {[%emt 0:06:09]} dxe4 {[%emt 0:04:01]} 13. Nxe4 {[%emt 0:00:33]} Nxe4 {[%emt 0:00:29]} 14. Bxe4 {[%emt 0:18:59]} O-O {[%emt 0:11:36]} 15. d5 {[%emt 0:07:42]} cxd5 {[%emt 0:01:19]} 16. Bxd5 {[%emt 0:00:34]} Bxd5 {[%emt 0:01:03]} 17. Qxd5 {[%emt 0:00:04]} Nb6 {[%emt 0:00:55]} 18. Qe4 {[%emt 0:02:47]} Rac8 {[%emt 0:04:32]} 19. Rad1 {[%emt 0:02:17]} a5 {[%emt 0:06:23]} 20. a3 {[%emt 0:03:07]} Nc4 {[%emt 0:04:55]} 21. Rc1 {[%emt 0:08:21]} Qc6 {[%emt 0:02:10]} 22. Qxc6 {[%emt 0:01:23]} Rxc6 {[%emt 0:00:10]} 23. Nd4 {[%emt 0:00:36]} Rcc8 {[%emt 0:00:35]} 24. Nf5 {[%emt 0:01:00]} Bc5 {[%emt 0:07:13]} 25. Rxc4 {[%emt 0:01:27]} Bxf2+ {[%emt 0:00:21]} 26. Bxf2 {[%emt 0:00:36]} Rxc4 {[%emt 0:00:11]} 27. Ne3 {[%emt 0:00:45]} Rc6 {[%emt 0:01:08]} 28. g4 {[%emt 0:00:29]} Rd8 {[%emt 0:00:26]} 29. Re2 {[%emt 0:00:27]} Re8 {[%emt 0:01:20]} 30. Rd2 {[%emt 0:00:29]} Rg6 {[%emt 0:03:46]} 31. Kf1 {[%emt 0:00:30]} Rg5 {[%emt 0:02:03]} 32. Rd4 {[%emt 0:00:36]} h5 {[%emt 0:01:41]} 33. h3 {[%emt 0:00:22]} hxg4 {[%emt 0:00:35]} 34. hxg4 {[%emt 0:00:03]} Rc8 {[%emt 0:02:10]} 35. Rd2 {[%emt 0:01:09]} g6 {[%emt 0:00:46]} 36. Nd5 {[%emt 0:00:27]} Rc1+ {[%emt 0:01:07]} 37. Ke2 {[%emt 0:00:11]} Kf8 {[%emt 0:00:27]} 38. Kf3 {[%emt 0:00:50]} Rc4 {[%emt 0:02:08]} 39. Nf6 {[%emt 0:00:32]} Rb5 {[%emt 0:02:08]} 40. Ne4 {[%emt 0:00:00]} Rb3+ {[%emt 0:00:00]} 41. Be3 {[%emt 0:05:09]} f5 {[%emt 0:03:37]} 42. gxf5 {[%emt 0:00:23]} gxf5 {[%emt 0:00:04]} 43. Nd6 {[%emt 0:00:31]} Rh4 {[%emt 0:03:22]} 44. Nxf5 {[%emt 0:00:26]} Rh3+ {[%emt 0:00:07]} 45. Ke4 {[%emt 0:00:14]} Ke8 {[%emt 0:01:08]} 46. Bd4 {[%emt 0:01:50]} a4 {[%emt 0:01:14]} 47. Rg2 {[%emt 0:02:03]} Rh7 {[%emt 0:01:08]} 48. Rc2 {[%emt 0:02:05]} b5 {[%emt 0:04:19]} 49. Kd5 {[%emt 0:04:17]} Kf7 {[%emt 0:03:50]} 50. Nd6+ {[%emt 0:01:31]} Kg6 {[%emt 0:00:29]} 51. Rg2+ {[%emt 0:01:46]} Kh5 {[%emt 0:00:13]} 52. Bf6 {[%emt 0:05:06]} Rc7 {[%emt 0:02:16]} 53. Nf5 {[%emt 0:00:49]} Rd3+ {[%emt 0:02:13]} 54. Ke4 {[%emt 0:00:18]} 1-0

[Event "69th RUS-ch Women Higher League 2019"]
[Site "Yaroslavl"]
[Date "2019.06.27"]
[Round "1.17"]
[White "Kabanova, Ekaterina"]
[Black "Afonasieva, Anna"]
[Result "0-1"]
[ECO "D00"]
[WhiteElo "2099"]
[BlackElo "2303"]
[Annotator "NA"]
[PlyCount "112"]
[EventDate "2019.06.27"]
[EventType "swiss"]
[EventCountry "RUS"]
[SourceTitle "playchess.com"]
[Source "ChessBase"]
[SourceQuality "1"]
[TimeControl "40/5400+30:1800+30"]

1. d4 {[%emt 0:01:06]} d5 {[%emt 0:00:00]} 2. Bf4 {[%emt 0:00:07]} Nf6 {[%emt 0:00:24]} 3. e3 {[%emt 0:00:15]} c5 {[%emt 0:00:07]} 4. c3 {[%emt 0:00:05]} Nc6 {[%emt 0:01:37]} 5. Nd2 {[%emt 0:00:34]} g6 {[%emt 0:04:14]} 6. Ngf3 {[%emt 0:01:11]} Bg7 {[%emt 0:00:28]} 7. dxc5 {[%emt 0:00:32]} O-O {[%emt 0:00:38]} 8. Be2 {[%emt 0:00:18]} Re8 {[%emt 0:01:57]} 9. O-O {[%emt 0:01:30]} e5 {[%emt 0:02:29]} 10. Bg3 {[%emt 0:00:10]} a5 {[%emt 0:04:00]} 11. a4 {[%emt 0:03:01]} Qe7 {[%emt 0:02:22]} 12. Bb5 {[%emt 0:03:31]} Nh5 {[%emt 0:10:18]} 13. b4 {[%emt 0:06:58]} Bg4 {[%emt 0:04:56]} 14. Qb3 {[%emt 0:02:52]} Red8 {[%emt 0:01:45]} 15. Bh4 {[%emt 0:02:03]} f6 {[%emt 0:00:53]} 16. h3 {[%emt 0:11:59]} Be6 {[%emt 0:05:49]} 17. Bxc6 {[%emt 0:02:05]} bxc6 {[%emt 0:00:06]} 18. Nxe5 {[%emt 0:00:42]} d4 {[%emt 0:05:21]} 19. Qc2 {[%emt 0:09:23]} Qc7 {[%emt 0:02:07]} 20. Nef3 {[%emt 0:03:13]} g5 {[%emt 0:03:37]} 21. Nxd4 {[%emt 0:04:43]} Rxd4 {[%emt 0:04:57]} 22. cxd4 {[%emt 0:00:22]} gxh4 {[%emt 0:00:22]} 23. b5 {[%emt 0:02:52]} f5 {[%emt 0:01:31]} 24. Nf3 {[%emt 0:00:10]} Bf6 {[%emt 0:00:53]} 25. Rab1 {[%emt 0:00:57]} Ng7 {[%emt 0:07:51]} 26. bxc6 {[%emt 0:00:54]} Bd5 {[%emt 0:01:44]} 27. Rb7 {[%emt 0:04:44]} Qc8 {[%emt 0:00:14]} 28. Rfb1 {[%emt 0:00:42]} Kf8 {[%emt 0:04:41]} 29. Qd1 {[%emt 0:03:11]} Bxc6 {[%emt 0:02:07]} 30. R7b6 {[%emt 0:01:28]} Bd8 {[%emt 0:00:43]} 31. R6b2 {[%emt 0:01:27]} Be4 {[%emt 0:06:07]} 32. Rc1 {[%emt 0:01:10]} Qe6 {[%emt 0:00:26]} 33. Rd2 {[%emt 0:06:44]} Qd5 {[%emt 0:01:18]} 34. c6 {[%emt 0:00:25]} Bc7 {[%emt 0:03:02]} 35. Rc5 {[%emt 0:00:56]} Qd6 {[%emt 0:00:44]} 36. Ne5 {[%emt 0:00:22]} Rb8 {[%emt 0:01:57]} 37. Rb5 {[%emt 0:02:17]} Bxc6 {[%emt 0:06:49]} 38. Rxb8+ {[%emt 0:00:05]} Bxb8 {[%emt 0:00:03]} 39. Qb3 {[%emt 0:00:16]} Be8 {[%emt 0:01:21]} 40. Rc2 {[%emt 0:00:00]} Qb4 {[%emt 0:00:00]} 41. Qd5 {[%emt 0:03:06]} Qb1+ {[%emt 0:03:30]} 42. Kh2 {[%emt 0:00:24]} Qxc2 {[%emt 0:00:07]} 43. f4 {[%emt 0:00:51]} Bxe5 {[%emt 0:00:53]} 44. fxe5 {[%emt 0:00:02]} Qxa4 {[%emt 0:01:48]} 45. Qd6+ {[%emt 0:00:04]} Kg8 {[%emt 0:00:12]} 46. Qd5+ {[%emt 0:00:01]} Kh8 {[%emt 0:00:12]} 47. Qd6 {[%emt 0:00:28]} Qb4 {[%emt 0:00:05]} 48. Qf6 {[%emt 0:00:13]} a4 {[%emt 0:02:30]} 49. d5 {[%emt 0:00:02]} a3 {[%emt 0:00:15]} 50. d6 {[%emt 0:04:50]} Kg8 {[%emt 0:00:08]} 51. Qd8 {[%emt 0:01:42]} a2 {[%emt 0:00:48]} 52. Qa8 {[%emt 0:00:38]} Qa4 {[%emt 0:00:48]} 53. Qd5+ {[%emt 0:00:55]} Kh8 {[%emt 0:02:39]} 54. e6 {[%emt 0:01:13]} Nxe6 {[%emt 0:00:36]} 55. Qxe6 {[%emt 0:00:14]} a1=Q {[%emt 0:00:06]} 56. Qxf5 {[%emt 0:00:05]} Qg7 {[%emt 0:00:10]} 0-1

[Event "69th RUS-ch Women Higher League 2019"]
[Site "Yaroslavl"]
[Date "2019.06.27"]
[Round "1.18"]
[White "Paramzina, Anastasya"]
[Black "Mukhina, Jana"]
[Result "0-1"]
[ECO "C50"]
[WhiteElo "2300"]
[BlackElo "2090"]
[Annotator "NA"]
[PlyCount "104"]
[EventDate "2019.06.27"]
[EventType "swiss"]
[EventCountry "RUS"]
[SourceTitle "playchess.com"]
[Source "ChessBase"]
[SourceQuality "1"]
[TimeControl "40/5400+30:1800+30"]

1. e4 {[%emt 0:00:00]} e5 {[%emt 0:00:00]} 2. Nf3 {[%emt 0:00:00]} Nc6 {[%emt 0:00:04]} 3. Bc4 {[%emt 0:00:00]} Bc5 {[%emt 0:00:10]} 4. O-O {[%emt 0:00:00]} Nf6 {[%emt 0:00:06]} 5. d3 {[%emt 0:00:03]} O-O {[%emt 0:00:25]} 6. Re1 {[%emt 0:00:35]} h6 {[%emt 0:03:48]} 7. c3 {[%emt 0:00:39]} d6 {[%emt 0:00:08]} 8. Nbd2 {[%emt 0:01:33]} a6 {[%emt 0:00:26]} 9. Bb3 {[%emt 0:00:22]} Be6 {[%emt 0:00:02]} 10. Bc2 {[%emt 0:04:10]} Ng4 {[%emt 0:00:29]} 11. Re2 {[%emt 0:01:58]} Bxf2+ {[%emt 0:01:26]} 12. Rxf2 {[%emt 0:01:37]} Ne3 {[%emt 0:00:03]} 13. Qe2 {[%emt 0:00:18]} Nxc2 {[%emt 0:00:03]} 14. Rb1 {[%emt 0:00:32]} Bxa2 {[%emt 0:00:09]} 15. b3 {[%emt 0:02:13]} Bxb1 {[%emt 0:02:59]} 16. Nxb1 {[%emt 0:00:03]} N2d4 {[%emt 0:11:27]} 17. cxd4 {[%emt 0:01:08]} Nxd4 {[%emt 0:02:59]} 18. Nxd4 {[%emt 0:00:38]} exd4 {[%emt 0:00:01]} 19. Nd2 {[%emt 0:00:56]} c5 {[%emt 0:05:28]} 20. Qg4 {[%emt 0:05:43]} Qg5 {[%emt 0:06:31]} 21. Qxg5 {[%emt 0:01:52]} hxg5 {[%emt 0:00:01]} 22. Nc4 {[%emt 0:00:11]} f6 {[%emt 0:14:55]} 23. Nxd6 {[%emt 0:00:33]} b6 {[%emt 0:01:27]} 24. Ra2 {[%emt 0:16:16]} Rfd8 {[%emt 0:06:56]} 25. Nc4 {[%emt 0:00:34]} Re8 {[%emt 0:03:22]} 26. Kf2 {[%emt 0:01:06]} Re6 {[%emt 0:00:56]} 27. Kf3 {[%emt 0:02:09]} Kf7 {[%emt 0:09:52]} 28. Bd2 {[%emt 0:02:17]} a5 {[%emt 0:05:41]} 29. h3 {[%emt 0:08:19]} Rh8 {[%emt 0:01:23]} 30. Ra1 {[%emt 0:06:21]} Kg6 {[%emt 0:01:17]} 31. Be1 {[%emt 0:05:11]} f5 {[%emt 0:03:31]} 32. exf5+ {[%emt 0:01:59]} Kxf5 {[%emt 0:00:07]} 33. Bg3 {[%emt 0:05:01]} Rf8 {[%emt 0:01:51]} 34. Bc7 {[%emt 0:02:43]} b5 {[%emt 0:01:32]} 35. Nd6+ {[%emt 0:05:16]} Kg6+ {[%emt 0:02:25]} 36. Kg4 {[%emt 0:01:41]} Rf4+ {[%emt 0:02:50]} 37. Kg3 {[%emt 0:00:03]} Re3+ {[%emt 0:00:13]} 38. Kh2 {[%emt 0:00:04]} Rxd3 {[%emt 0:04:36]} 39. Nxb5 {[%emt 0:00:28]} Rf2 {[%emt 0:01:09]} 40. Bxa5 {[%emt 0:00:00]} Rxb3 41. Nd6 {[%emt 0:01:54]} Rbb2 {[%emt 0:01:42]} 42. Kg3 {[%emt 0:01:14]} Rxg2+ {[%emt 0:04:07]} 43. Kf3 {[%emt 0:00:04]} Rge2 {[%emt 0:12:39]} 44. Nc4 {[%emt 0:02:15]} Rbc2 {[%emt 0:00:57]} 45. Ra4 {[%emt 0:00:08]} Kf5 {[%emt 0:02:47]} 46. Nd6+ {[%emt 0:00:49]} Ke6 {[%emt 0:00:07]} 47. Ne8 {[%emt 0:04:31]} g6 {[%emt 0:03:32]} 48. Ra3 {[%emt 0:02:01]} Rf2+ {[%emt 0:04:18]} 49. Kg4 {[%emt 0:00:13]} Rg2+ {[%emt 0:01:53]} 50. Kf3 {[%emt 0:00:04]} Rcf2+ {[%emt 0:00:22]} 51. Ke4 {[%emt 0:00:04]} Rf4+ {[%emt 0:00:11]} 52. Kd3 {[%emt 0:00:04]} Rg3+ {[%emt 0:00:05] Kxd4 Ke5+} 0-1

[Event "69th RUS-ch Women Higher League 2019"]
[Site "Yaroslavl"]
[Date "2019.06.27"]
[Round "1.19"]
[White "Faizutdinova, Diana"]
[Black "Tomilova, Elena"]
[Result "0-1"]
[ECO "A13"]
[WhiteElo "2061"]
[BlackElo "2289"]
[Annotator "NA"]
[PlyCount "112"]
[EventDate "2019.06.27"]
[EventType "swiss"]
[EventCountry "RUS"]
[SourceTitle "playchess.com"]
[Source "ChessBase"]
[SourceQuality "1"]
[TimeControl "40/5400+30:1800+30"]

1. c4 {[%emt 0:00:00]} e6 {[%emt 0:00:00]} 2. Nf3 {[%emt 0:00:00]} Nf6 {[%emt 0:00:06]} 3. b3 {[%emt 0:00:49]} d5 {[%emt 0:00:17]} 4. e3 {[%emt 0:00:56]} Be7 {[%emt 0:00:19]} 5. Bb2 {[%emt 0:01:19]} O-O {[%emt 0:00:37]} 6. Be2 {[%emt 0:02:59]} b6 {[%emt 0:02:54]} 7. cxd5 {[%emt 0:07:16]} Nxd5 {[%emt 0:01:13]} 8. O-O {[%emt 0:01:01]} Bb7 {[%emt 0:01:18]} 9. d4 {[%emt 0:03:42]} Nd7 {[%emt 0:01:06]} 10. Nbd2 {[%emt 0:01:48]} c5 {[%emt 0:03:10]} 11. Ne5 {[%emt 0:12:31]} cxd4 {[%emt 0:09:25]} 12. Bxd4 {[%emt 0:10:39]} Nxe5 {[%emt 0:03:09]} 13. Bxe5 {[%emt 0:00:06]} Bf6 {[%emt 0:02:16]} 14. Bxf6 {[%emt 0:07:29]} Qxf6 {[%emt 0:00:13]} 15. Bf3 {[%emt 0:05:32]} Rfd8 {[%emt 0:09:09]} 16. Ne4 {[%emt 0:07:41]} Qg6 {[%emt 0:01:38]} 17. Qb1 {[%emt 0:00:19]} f5 {[%emt 0:15:14]} 18. Ng3 {[%emt 0:00:48]} Qf6 {[%emt 0:06:46]} 19. b4 {[%emt 0:10:34]} Nc3 {[%emt 0:09:01]} 20. Qb3 {[%emt 0:01:09]} Bxf3 {[%emt 0:00:34]} 21. gxf3 {[%emt 0:00:09]} Rac8 {[%emt 0:08:32]} 22. Kh1 {[%emt 0:04:30]} Kh8 {[%emt 0:02:24]} 23. Rac1 {[%emt 0:04:39]} b5 {[%emt 0:03:14]} 24. Rc2 {[%emt 0:02:32]} Rc4 {[%emt 0:01:31]} 25. Rfc1 {[%emt 0:05:44]} Rdc8 {[%emt 0:00:54]} 26. f4 {[%emt 0:04:52]} e5 {[%emt 0:01:29]} 27. Kg1 {[%emt 0:03:44]} exf4 {[%emt 0:00:38]} 28. exf4 {[%emt 0:00:03]} Qd4 {[%emt 0:04:03]} 29. Re1 {[%emt 0:00:50]} h6 {[%emt 0:03:00]} 30. Nxf5 {[%emt 0:00:32]} Qxf4 {[%emt 0:01:04]} 31. Ng3 {[%emt 0:00:34]} Qg5 {[%emt 0:03:21]} 32. Qa3 {[%emt 0:00:37]} h5 {[%emt 0:00:53]} 33. h4 {[%emt 0:00:30]} Qxh4 {[%emt 0:02:09]} 34. Qxa7 {[%emt 0:00:06]} Qg4 {[%emt 0:00:09]} 35. Qf7 {[%emt 0:00:36]} h4 {[%emt 0:01:07]} 36. Re8+ {[%emt 0:00:43]} Rxe8 {[%emt 0:00:45]} 37. Qxe8+ {[%emt 0:00:03]} Kh7 {[%emt 0:00:02]} 38. Qh5+ {[%emt 0:00:43]} Qxh5 {[%emt 0:00:07]} 39. Nxh5 {[%emt 0:00:03]} Nd5 {[%emt 0:01:46]} 40. Rd2 {[%emt 0:00:00]} Nxb4 {[%emt 0:00:00]} 41. Rd7 {[%emt 0:10:03]} Kh6 {[%emt 0:01:13]} 42. Nxg7 {[%emt 0:00:55]} Rg4+ {[%emt 0:00:09]} 43. Kf1 {[%emt 0:00:36]} Rxg7 {[%emt 0:00:09]} 44. Rd4 {[%emt 0:00:03]} Nxa2 {[%emt 0:00:28]} 45. Rxh4+ {[%emt 0:00:11]} Kg5 {[%emt 0:00:18]} 46. Rh3 {[%emt 0:03:57]} Rc7 {[%emt 0:04:54]} 47. Rb3 {[%emt 0:02:28]} Rc5 {[%emt 0:01:54]} 48. Ke1 {[%emt 0:00:22]} Nc1 {[%emt 0:01:42]} 49. Rb1 {[%emt 0:00:30]} Nd3+ {[%emt 0:00:31]} 50. Ke2 {[%emt 0:00:05]} Ne5 {[%emt 0:00:24]} 51. Ke3 {[%emt 0:00:38]} Nc6 {[%emt 0:00:42]} 52. Rg1+ {[%emt 0:00:56]} Kf6 {[%emt 0:00:30]} 53. Kd3 {[%emt 0:01:25]} b4 {[%emt 0:00:37]} 54. Rh1 {[%emt 0:00:32]} b3 {[%emt 0:02:15]} 55. Rh7 {[%emt 0:02:14]} Nb4+ {[%emt 0:01:29]} 56. Kd4 {[%emt 0:00:38]} Rc1 {[%emt 0:00:46]} 0-1

[Event "69th RUS-ch Women Higher League 2019"]
[Site "Yaroslavl"]
[Date "2019.06.27"]
[Round "1.20"]
[White "Maletina, Tatiana"]
[Black "Mokshanova, Elizaveta"]
[Result "1/2-1/2"]
[ECO "E81"]
[WhiteElo "2273"]
[BlackElo "2020"]
[Annotator "NA"]
[PlyCount "174"]
[EventDate "2019.06.27"]
[EventType "swiss"]
[EventCountry "RUS"]
[SourceTitle "playchess.com"]
[Source "ChessBase"]
[SourceQuality "1"]
[TimeControl "40/5400+30:1800+30"]

1. d4 {[%emt 0:00:00]} Nf6 {[%emt 0:00:00]} 2. c4 {[%emt 0:00:00]} g6 {[%emt 0:00:00]} 3. f3 {[%emt 0:00:00]} Bg7 {[%emt 0:00:00]} 4. e4 {[%emt 0:00:00]} d6 {[%emt 0:00:00]} 5. Nc3 {[%emt 0:00:00]} O-O {[%emt 0:00:00]} 6. Be3 {[%emt 0:00:00]} c5 {[%emt 0:00:00]} 7. Nge2 {[%emt 0:00:25]} Nc6 {[%emt 0:01:49]} 8. d5 {[%emt 0:00:07]} Na5 {[%emt 0:00:07]} 9. b3 {[%emt 0:08:35]} e6 {[%emt 0:01:42]} 10. dxe6 {[%emt 0:12:22]} fxe6 {[%emt 0:00:07]} 11. e5 {[%emt 0:01:26]} Ne8 {[%emt 0:12:01]} 12. Bxc5 {[%emt 0:17:45]} Bxe5 {[%emt 0:00:19]} 13. Bd4 {[%emt 0:00:05]} Nc6 {[%emt 0:04:16]} 14. Bxe5 {[%emt 0:00:05]} Nxe5 {[%emt 0:00:03]} 15. f4 {[%emt 0:02:47]} Ng4 {[%emt 0:04:57]} 16. h3 {[%emt 0:10:16]} Ne3 {[%emt 0:02:40]} 17. Qd2 {[%emt 0:00:07]} Nxf1 {[%emt 0:02:14]} 18. Rxf1 {[%emt 0:00:04]} Qh4+ {[%emt 0:06:27]} 19. Kd1 {[%emt 0:01:36]} e5 {[%emt 0:03:13]} 20. Kc2 {[%emt 0:00:53]} Ng7 {[%emt 0:01:56]} 21. Kb2 {[%emt 0:10:23]} Be6 {[%emt 0:08:24]} 22. Rad1 {[%emt 0:00:07]} Rad8 {[%emt 0:04:21]} 23. Qe3 {[%emt 0:00:58]} Nf5 {[%emt 0:01:09]} 24. Qd3 {[%emt 0:14:51]} Rd7 {[%emt 0:13:29]} 25. g4 {[%emt 0:00:49]} Ne7 {[%emt 0:01:12]} 26. Qe3 {[%emt 0:00:24]} Nc6 {[%emt 0:00:36]} 27. Rd2 {[%emt 0:13:31]} Qe7 {[%emt 0:10:38]} 28. Qe4 {[%emt 0:01:33]} Qf7 {[%emt 0:01:53]} 29. Rdd1 {[%emt 0:00:18]} Qf6 {[%emt 0:06:08]} 30. Qg2 {[%emt 0:03:39]} Qg7 {[%emt 0:02:03]} 31. Qe4 {[%emt 0:00:54]} Qf6 {[%emt 0:02:09]} 32. Nd5 {[%emt 0:00:06]} Bxd5 {[%emt 0:03:33]} 33. Qxd5+ {[%emt 0:00:02]} Rdf7 {[%emt 0:01:09]} 34. Kb1 {[%emt 0:02:08]} exf4 {[%emt 0:03:47]} 35. Rxf4 {[%emt 0:00:11]} Qe5 {[%emt 0:00:37]} 36. Re4 {[%emt 0:00:32]} Qh2 {[%emt 0:01:03]} 37. Qxd6 {[%emt 0:00:37]} Qg2 {[%emt 0:00:38]} 38. Qd5 {[%emt 0:00:31]} Qxh3 {[%emt 0:02:13]} 39. Rf4 {[%emt 0:00:39]} Qe3 {[%emt 0:00:24]} 40. Rxf7 {[%emt 0:00:00]} Rxf7 {[%emt 0:00:00]} 41. Rf1 {[%emt 0:00:21]} Qe7 {[%emt 0:01:04]} 42. c5 {[%emt 0:12:56]} Kg7 {[%emt 0:01:45]} 43. Nf4 {[%emt 0:00:33]} Kg8 {[%emt 0:12:31]} 44. Nd3 {[%emt 0:00:45]} Kg7 {[%emt 0:02:19]} 45. Re1 {[%emt 0:01:50]} Qd7 {[%emt 0:01:11]} 46. Qc4 {[%emt 0:01:44]} Qd4 {[%emt 0:01:39]} 47. Qxd4+ {[%emt 0:00:18]} Nxd4 {[%emt 0:00:04]} 48. Kb2 {[%emt 0:00:12]} Rf3 {[%emt 0:00:56]} 49. Kc3 {[%emt 0:02:16]} Nc6 {[%emt 0:00:36]} 50. b4 {[%emt 0:10:18]} a6 {[%emt 0:04:02]} 51. Re4 {[%emt 0:02:23]} Kf6 {[%emt 0:01:22]} 52. Kc4 {[%emt 0:00:41]} Kg5 {[%emt 0:02:49]} 53. a4 {[%emt 0:00:05]} Rg3 {[%emt 0:00:50]} 54. b5 {[%emt 0:00:15]} axb5+ {[%emt 0:00:02]} 55. axb5 {[%emt 0:00:04]} Na7 {[%emt 0:00:11]} 56. Ne5 {[%emt 0:00:26]} h5 {[%emt 0:01:07]} 57. gxh5 {[%emt 0:00:59]} gxh5 {[%emt 0:00:05]} 58. c6 {[%emt 0:00:53]} bxc6 {[%emt 0:00:06]} 59. b6 {[%emt 0:00:07]} Nc8 {[%emt 0:00:57]} 60. Nf7+ {[%emt 0:00:13]} Kf6 {[%emt 0:00:29]} 61. b7 {[%emt 0:02:02]} Nb6+ {[%emt 0:00:07]} 62. Kc5 {[%emt 0:00:33]} Nd7+ {[%emt 0:01:24]} 63. Kxc6 {[%emt 0:00:04]} Nb8+ {[%emt 0:01:54]} 64. Kc7 {[%emt 0:00:06]} Kxf7 {[%emt 0:00:58]} 65. Kxb8 {[%emt 0:00:05]} Rb3 {[%emt 0:00:09]} 66. Kc7 {[%emt 0:00:03]} Rc3+ {[%emt 0:00:20]} 67. Kb6 {[%emt 0:00:03]} Rb3+ {[%emt 0:00:03]} 68. Kc6 {[%emt 0:00:04]} Kf6 {[%emt 0:00:55]} 69. Re8 {[%emt 0:00:14]} Rxb7 {[%emt 0:00:09]} 70. Kxb7 {[%emt 0:00:04]} Kf5 {[%emt 0:00:12]} 71. Kc6 {[%emt 0:00:44]} h4 {[%emt 0:00:06]} 72. Kd5 {[%emt 0:02:18]} Kf4 {[%emt 0:00:12]} 73. Rf8+ {[%emt 0:00:35]} Kg3 {[%emt 0:00:03]} 74. Ke4 {[%emt 0:00:08]} h3 {[%emt 0:00:07]} 75. Ke3 {[%emt 0:00:35]} Kg2 {[%emt 0:00:22]} 76. Rf2+ {[%emt 0:01:10]} Kg3 {[%emt 0:00:57]} 77. Rf8 {[%emt 0:01:40]} Kg2 {[%emt 0:00:04]} 78. Rg8+ {[%emt 0:01:17]} Kf1 {[%emt 0:01:00]} 79. Rf8+ {[%emt 0:00:56]} Kg2 {[%emt 0:00:23]} 80. Rf2+ {[%emt 0:00:38]} Kg3 {[%emt 0:00:07]} 81. Rf8 {[%emt 0:00:31]} Kg2 {[%emt 0:00:11]} 82. Kf4 {[%emt 0:00:07]} h2 {[%emt 0:00:48]} 83. Rg8+ {[%emt 0:00:03]} Kf2 {[%emt 0:00:28]} 84. Ra8 {[%emt 0:00:42]} h1=Q {[%emt 0:00:19]} 85. Ra2+ {[%emt 0:00:03]} Kf1 {[%emt 0:00:14]} 86. Ra1+ {[%emt 0:00:03]} Kg2 {[%emt 0:00:05]} 87. Rxh1 {[%emt 0:00:07]} Kxh1 {[%emt 0:00:02]} 1/2-1/2